[Event "Chinese Championship-B Men 2024"]
[Site "Liaocheng"]
[Date "2024.04.25"]
[Round "9.1"]
[White "Xi, Qi"]
[Black "Zhang, Ziji"]
[Result "0-1"]
[ECO "D37"]
[WhiteElo "2217"]
[BlackElo "2392"]
[Annotator "TA"]
[PlyCount "132"]
[EventDate "2024.04.24"]
[EventType "swiss"]
[EventCountry "CHN"]
[SourceTitle "playchess.com"]
[Source "ChessBase"]
[SourceQuality "1"]
[TimeControl "5400+30"]

{[%evp 18,132,47,16,18,30,22,22,28,23,20,15,25,46,33,8,16,22,22,6,10,0,0,0,0,0,0,0,124,-18,0,0,0,0,81,0,8,0,0,-108,-103,-125,-127,-130,-143,-118,-104,-115,-109,-141,-134,-151,-143,-146,-152,-147,-151,-147,-142,-138,-133,-135,-133,-119,-112,-154,-159,-166,-138,-137,-134,-149,-99,-106,-106,-109,-103,-100,-106,-107,-68,-72,-68,-76,-57,-118,-91,-139,-139,-132,-132,-135,-91,-110,-106,-122,-120,-119,-59,-59,-59,-59,-59,-59,-59,-59,-59,-66,-152,-1554,-1305,-4614,-4610,-29983,-29984,-29984,-29985]} 1. d4 {[%emt 0:00:05]} d5 {[%emt 0:00:11]} 2. c4 {[%emt 0:00:15]} e6 {[%emt 0:00:32]} 3. Nf3 {[%emt 0:00:15]} Nf6 {[%emt 0:00:15]} 4. Nc3 {[%emt 0:00:09]} Be7 {[%emt 0:00:11]} 5. Bf4 {[%emt 0:00:15]} O-O {[%emt 0:00:14]} 6. e3 {[%emt 0:00:13]} c5 {[%emt 0:01:16]} 7. dxc5 {[%emt 0:00:54]} Bxc5 {[%emt 0:00:05]} 8. a3 {[%emt 0:05:36]} Nc6 {[%emt 0:00:27]} 9. Qc2 {[%emt 0:00:45]} Qa5 {[%emt 0:00:53]} 10. Rd1 {[%emt 0:00:46]} Re8 {[%emt 0:00:48] White must now prevent ...e5.} 11. Nd2 {[%emt 0:05:08] Black should prevent Nb3.} e5 {[%emt 0:01:08]} 12. Bg5 {[%emt 0:00:17]} Nd4 {[%emt 0:00:59] Prevents Nb3. The position is equal.} 13. Qb1 {[%emt 0:00:21]} (13. exd4 exd4+ 14. Be2 (14. Ne2 $2 Ng4 $19) 14... dxc3 15. Bxf6 (15. Nb3 $2 Qa4 $19) 15... cxd2+ (15... gxf6 16. Nb3 $11) 16. Rxd2 Rxe2+ (16... gxf6 $2 17. b4 $19) 17. Kxe2 gxf6 18. Rxd5 Qc7 $19) 13... Bf5 {[%emt 0:00:51]} 14. Bd3 {[%emt 0:00:12]} Bxd3 {[%emt 0:00:12]} 15. Qxd3 {[%emt 0:00:03]} Ne4 {[%emt 0:00:36]} 16. Nxd5 {[%emt 0:02:44]} (16. exd4 exd4 17. O-O (17. Ncxe4 dxe4 18. Qg3 e3 $17) 17... dxc3 18. Nxe4 dxe4 19. Qxc3 Bxf2+ 20. Rxf2 Qxg5 $17) (16. Ncxe4 {simplifies} dxe4 17. Qxe4 Qb6 18. Qb1) 16... Nxg5 {[%emt 0:01:17]} 17. b4 {[%emt 0:00:14]} Qd8 {[%emt 0:00:57]} (17... e4 $2 18. Nxe4 $18) 18. bxc5 {[%emt 0:00:15][%cal Oh2h4]} Nde6 {[%emt 0:01:16]} 19. h4 {[%emt 0:00:26]} (19. Nb3 $5 Nxc5 20. Nxc5 Qa5+ 21. Qc3 Qxc5 22. O-O $15) 19... Nxc5 {[%emt 0:01:30]} 20. Qf5 $36 {[%emt 0:00:07][%mdl 2048] White is more active.} (20. Qb1 $5 Nge6 $8 21. g3 $11) 20... Nge6 {[%emt 0:01:32]} 21. Nf3 {[%emt 0:06:48]} f6 {[%emt 0:11:12] Dodges Ng5} 22. h5 {[%emt 0:00:39] Strongly threatening h6.} h6 {[%emt 0:01:17]} (22... Qa5+ $11 23. Nd2 Rf8) 23. Rh3 {[%emt 0:13:19]} (23. O-O $16) 23... Ng5 {[%emt 0:18:46]} 24. Nxg5 {[%emt 0:08:32]} fxg5 {[%emt 0:00:06]} 25. Rf3 {[%emt 0:10:17]} Kh8 {[%emt 0:02:56]} (25... e4 $11 26. Qf7+ Kh8) 26. e4 {[%emt 0:05:10]} (26. Qg6 $1 $16 Re6 27. Nf6 Qxf6 (27... Qa5+ $2 28. Kf1 $18) 28. Rxf6 Rxf6 29. Qb1) 26... Ne6 {[%emt 0:10:54]} 27. Qxe5 {[%emt 0:02:04][%cal Od5f6] And now Nf6! would win.} Nc5 {[%emt 0:04:05][%csl LRe4,LRe5]} 28. Qb2 {[%emt 0:02:23]} (28. Qf5 $11 {remains equal.}) 28... Rxe4+ $17 {[%emt 0:01:27]} 29. Kf1 {[%emt 0:00:40] [#]} Qe8 $1 {[%emt 0:18:07] Wards off Rf7} 30. g3 {[%emt 0:12:58]} Qxh5 {[%emt 0:01:11]} (30... Rxc4 31. Kg2 $11) 31. Kg2 {[%emt 0:00:10] Wards off Qh1+} Qg6 {[%emt 0:01:25][%cal Ob7b6] Inhibits Nf6.} (31... Rxc4 32. Ne3 g4 33. Rf5 $16) (31... g4 {keeps more tension.} 32. Re3 Qf7 33. Rd4 Rae8) 32. Qc2 {[%emt 0:03:00]} Kh7 {[%emt 0:01:26]} 33. Re3 {[%emt 0:05:08]} Rae8 {[%emt 0:01:06] Wards off Ne7} 34. Rxe4 {[%emt 0:00:56]} Qxe4+ {[%emt 0:00:50]} 35. Qxe4+ {[%emt 0:00:04]} Rxe4 {[%emt 0:00:06][%mdl 4096] Endgame. KRN-KRN} 36. Ne3 {[%emt 0:00:11]} Kg6 {[%emt 0:01:06]} 37. Rd5 {[%emt 0:01:01]} b6 {[%emt 0:00:16]} 38. Rd6+ {[%emt 0:01:22]} Re6 {[%emt 0:00:27]} 39. Rd8 {[%emt 0:00:21]} Kf7 {[%emt 0:00:48]} 40. Ra8 {[%emt 0:00:38]} Re7 {[%emt 0:00:15]} 41. g4 {[%emt 0:01:41]} Rd7 {[%emt 0:00:37]} 42. Kf3 {[%emt 0:00:52]} Kf6 {[%emt 0:00:39]} 43. Nd5+ {[%emt 0:04:36]} Ke5 {[%emt 0:00:35] Hoping for ...Kd4.} 44. Ke3 {[%emt 0:00:15] [#]} b5 {[%emt 0:05:37]} 45. Rc8 {[%emt 0:03:49]} bxc4 {[%emt 0:01:19]} 46. Nb4 {[%emt 0:03:37]} Ne6 {[%emt 0:00:54] ...Rc7 is the strong threat.} 47. Rxc4 {[%emt 0:00:05]} Nf4 {[%emt 0:00:17]} 48. Rc5+ {[%emt 0:02:29]} Ke6 {[%emt 0:01:36]} 49. Ra5 {[%emt 0:00:32]} Kd6 {[%emt 0:00:16]} 50. f3 {[%emt 0:01:43]} g6 {[%emt 0:00:25]} 51. Ke4 {[%emt 0:01:01]} ({Better is} 51. Nd3 $15) 51... Rc7 {[%emt 0:01:14]} 52. Ra6+ {[%emt 0:00:34]} ({White should play} 52. Kd4) 52... Kc5 {[%emt 0:01:04] ( -> ...Re7+)} 53. Nd3+ {[%emt 0:00:33]} Kb5 {[%emt 0:00:04]} 54. Rd6 {[%emt 0:00:14]} Rc4+ {[%emt 0:00:35]} 55. Ke5 {[%emt 0:00:07]} Nxd3+ 56. Rxd3 {[%emt 0:00:00] KR-KR} Rf4 {[%emt 0:00:38]} 57. Rd5+ {[%emt 0:01:15]} Ka4 {[%emt 0:00:41]} (57... Kc4 $17 {[%cal Oh6h5] ...h5! would now be deadly.} 58. Ra5 Rxf3 59. Rxa7 (59. Ra4+ Kd3 $17) 59... h5) 58. Rd6 $15 {[%emt 0:00:13]} a5 $1 {[%emt 0:00:07]} ({Much weaker is} 58... Kxa3 59. Ra6+ Kb4 60. Rxa7 $11) 59. Rxg6 {[%emt 0:00:14]} Rxf3 {[%emt 0:00:04]} 60. Rxh6 {[%emt 0:00:21]} Rf4 $1 {[%emt 0:00:04]} ({Reject} 60... Rxa3 61. Kf5 $11) ({Don't play} 60... Kxa3 61. Rg6 $11) 61. Rh3 {[%emt 0:01:35]} Rxg4 {[%emt 0:00:06]} 62. Rc3 {[%emt 0:00:28]} Rg1 {[%emt 0:01:36]} (62... Rg2 $15) 63. Kf5 $2 {[%emt 0:00:22] White does not recover from this.} (63. Ke4 $17) 63... Rb1 $19 {[%emt 0:04:02]} 64. Kxg5 {[%emt 0:00:12]} Rb3 {[%emt 0:00:15]} 65. Rc5 {[%emt 0:00:40]} Rb5 {[%emt 0:00:57]} (65... Rxa3 $2 66. Kf5 $19) 66. Rxb5 {[%emt 0:00:46]} Kxb5 {[%emt 0:00:04] Weighted Error Value: White=0.17 (very precise) /Black=0.13 (very precise) .  Loses game:     	White=1     	---        Mistake:       	White=5     	Black=5      Inaccurate:     	White=2     	Black=2      OK:         	White=22    	Black=18     Best:        	White=6     	Black=12     Strong:       	---       	Black=3} 0-1

[Event "Chinese Championship-B Men 2024"]
[Site "Liaocheng"]
[Date "2024.04.25"]
[Round "9.2"]
[White "Zhang, Di"]
[Black "Jiang, Qinyu"]
[Result "1-0"]
[ECO "B22"]
[WhiteElo "2303"]
[BlackElo "2319"]
[Annotator "TA"]
[PlyCount "91"]
[EventDate "2024.04.24"]
[EventType "swiss"]
[EventCountry "CHN"]
[SourceTitle "playchess.com"]
[Source "ChessBase"]
[SourceQuality "1"]
[TimeControl "5400+30"]

{[%evp 17,91,20,27,31,31,21,20,31,18,22,15,26,41,31,27,35,94,24,15,29,35,43,7,38,33,37,47,20,70,31,80,85,109,113,84,108,170,180,184,141,228,77,62,55,60,63,84,83,96,120,111,10,84,22,37,0,22,14,35,29,24,28,24,21,35,37,36,2,202,197,188,193,169,90,642,646]} 1. e4 {[%emt 0:00:03]} c5 {[%emt 0:01:30]} 2. c3 {[%emt 0:00:38]} e5 {[%emt 0:00:01]} 3. Nf3 {[%emt 0:00:15]} Nc6 {[%emt 0:00:01]} 4. Bc4 {[%emt 0:00:13]} Nf6 {[%emt 0:00:00]} 5. Ng5 {[%emt 0:00:17]} d5 {[%emt 0:00:01]} 6. exd5 {[%emt 0:00:10] B22: Sicilian: 2 c3.} Nxd5 {[%emt 0:00:01]} 7. Qh5 {[%emt 0:00:14]} g6 {[%emt 0:00:01]} 8. Qf3 {[%emt 0:00:07]} Qxg5 {[%emt 0:00:02]} 9. Bxd5 {[%emt 0:00:09]} Nd8 {[%emt 0:00:01]} 10. O-O {[%emt 0:00:10]} Qe7 {[%emt 0:00:00]} 11. d4 {[%emt 0:00:22]} cxd4 {[%emt 0:00:02]} 12. cxd4 {[%emt 0:00:06]} exd4 {[%emt 0:00:00]} 13. Bf4 {[%emt 0:00:17]} g5 {[%emt 0:00:01]} 14. Bg3 {[%emt 0:00:13]} Bg7 {[%emt 0:00:48]} 15. Na3 {[%emt 0:00:15]} Be6 $146 {[%emt 0:00:25]} ({Predecessor:} 15... O-O 16. Nb5 Be6 17. Nc7 Rc8 18. Nxe6 fxe6 19. Qe4 Qf7 20. Bb3 Qf5 21. Rae1 Kh8 {½-½ Zelbel,P (2458)-Svane,F (2496) Bundesliga 2122 2022 (8.5)}) 16. Nb5 {[%emt 0:01:27]} g4 {[%emt 0:00:01]} (16... O-O $14) 17. Qb3 {[%emt 0:00:32]} (17. Qd3 $16 O-O 18. Bd6) 17... O-O $11 {[%emt 0:20:51]} 18. Bd6 {[%emt 0:03:06]} Qd7 $1 {[%emt 0:01:22]} 19. Bxe6 $1 {[%emt 0:00:39]} Nxe6 {[%emt 0:00:01]} 20. Bxf8 {[%emt 0:00:09]} Rxf8 {[%emt 1:15:21]} 21. Rad1 {[%emt 0:00:13]} Nf4 {[%emt 0:00:00]} 22. Rfe1 {[%emt 0:25:17]} Rd8 {[%emt 0:00:00]} (22... a6 $1 $11 23. Nxd4 Bxd4) 23. Qg3 {[%emt 0:17:09]} Qf5 {[%emt 0:00:00]} (23... Ng6 $1 $14 24. Qb3 (24. Nxa7 $2 b6 $19) 24... b6) 24. h3 $1 $16 {[%emt 0:00:46]} h5 {[%emt 0:00:00]} 25. hxg4 {[%emt 0:06:34]} hxg4 {[%emt 0:00:00]} 26. Qh4 {[%emt 0:01:11]} Qd7 {[%emt 0:00:00]} (26... Bf6 $16 {might work better.} 27. Nd6 Qg6 (27... Rxd6 28. Re8+ Kg7 29. Qh8+ Kg6 30. Rg8+)) 27. Qg5 $18 {[%emt 0:09:57]} (27. Nxa7 Ra8 (27... d3 28. Re4 $16) 28. Qg5 Ne6 $11) 27... Ng6 {[%emt 0:00:00]} 28. Re4 {[%emt 0:02:11]} (28. Nxa7 $6 g3 $16) 28... d3 {[%emt 0:00:00]} (28... g3 $16) 29. Re3 $2 {[%emt 0:02:50]} (29. Nxa7 $6 g3 $16) (29. Rxg4 Re8 30. Rg3 (30. Nxa7 $2 Re5 $19) 30... Re5 $17) (29. Nc3 $18) 29... Ne5 $16 {[%emt 0:00:00]} 30. Nc3 $1 {[%emt 0:03:47]} (30. Rxe5 f6 31. Qg6 (31. Rxd3 $2 Qxd3 32. Qh4 fxe5 $19) 31... fxe5 $11) 30... f6 $1 {[%emt 0:00:00]} 31. Qf4 {[%emt 0:00:15]} b5 {[%emt 0:00:20]} 32. b3 {[%emt 0:11:51]} Qc6 {[%emt 0:00:49]} 33. Ne4 {[%emt 0:00:09]} Rd5 {[%emt 0:00:56]} 34. Ree1 {[%emt 0:00:25]} (34. Kf1 $16) 34... Kf7 {[%emt 0:00:36]} (34... f5 $1 $11 {remains equal.} 35. Ng3 (35. Qxf5 $2 {loses.} Nf3+ 36. gxf3 Rxf5 $19) 35... Ng6) 35. Ng3 {[%emt 0:01:46]} (35. Rc1 $16 Qd7 36. Rc5) 35... Qd7 $1 $11 {[%emt 0:00:28]} 36. Qe4 {[%emt 0:00:37]} Ng6 $1 {[%emt 0:01:31]} 37. Qe3 {[%emt 0:05:03]} f5 {[%emt 0:01:52]} 38. Nh5 $1 {[%emt 0:03:59]} f4 {[%emt 0:00:01]} ({Not} 38... d2 $2 39. Re2 $18) 39. Nxf4 {[%emt 0:00:24]} Bd4 $1 {[%emt 0:00:00]} 40. Qe6+ {[%emt 0:00:49]} Qxe6 {[%emt 0:00:06]} 41. Nxe6 {[%emt 0:00:03]} Bb6 {[%emt 0:00:39]} 42. b4 {[%emt 0:01:33]} Ne5 $2 {[%emt 0:03:07]} (42... g3 $11 {and Black stays safe.} 43. Nc5 Ne5) 43. Nf4 $18 {[%emt 0:01:10]} Rd4 {[%emt 0:00:29]} 44. Rxe5 {[%emt 0:01:07]} Rxf4 {[%emt 0:00:01]} 45. Rxd3 {[%emt 0:01:25]} (45. Rxb5 $18 Bxf2+ 46. Kh2) 45... g3 $2 {[%emt 0:00:00][%mdl 8192]} (45... Bxf2+ $2 {too greedy.} 46. Kh2 g3+ 47. Kh3 $18) (45... Rxf2 $16 46. Rxb5 Rxa2+ 47. Kh1 Ke6) 46. Rf3 {[%emt 0:00:45]} 1-0

[Event "Chinese Championship-B Men 2024"]
[Site "Liaocheng"]
[Date "2024.04.25"]
[Round "9.3"]
[White "Zhu, Yilun"]
[Black "Xie, Kaifan"]
[Result "0-1"]
[ECO "D38"]
[WhiteElo "2125"]
[BlackElo "2393"]
[Annotator "TA"]
[PlyCount "94"]
[EventDate "2024.04.24"]
[EventType "swiss"]
[EventCountry "CHN"]
[SourceTitle "playchess.com"]
[Source "ChessBase"]
[SourceQuality "1"]
[TimeControl "5400+30"]

{[%evp 13,94,24,40,0,5,10,10,5,18,-19,-18,-23,-24,-22,-17,-25,-26,-28,-20,-31,-14,-25,-27,-49,-37,-52,-51,-52,-57,-56,-54,-61,-50,-45,-53,-50,0,-3,0,-58,-64,-53,0,0,0,0,0,-46,-41,-135,-139,-130,-149,-148,-135,-154,-159,-172,-132,-141,0,-170,-160,-240,-229,-293,-331,-569,-586,-860,-860,-818,-818,-788,-725,-1511,-1209,-1218,-1156,-1218,-1377,-1395,-1360]} 1. Nf3 {[%emt 0:00:04]} Nf6 {[%emt 0:00:15]} 2. c4 {[%emt 0:00:08]} e6 {[%emt 0:00:05]} 3. Nc3 {[%emt 0:00:04]} d5 {[%emt 0:00:14]} 4. d4 {[%emt 0:00:30]} Bb4 {[%emt 0:01:17]} 5. Bg5 {[%emt 0:01:09]} Nbd7 {[%emt 0:11:08]} 6. cxd5 {[%emt 0:00:20]} exd5 {[%emt 0:00:14]} 7. Qc2 {[%emt 0:00:51]} h6 {[%emt 0:06:47]} 8. Bxf6 {[%emt 0:00:07]} Bxc3+ {[%emt 0:12:20]} 9. bxc3 {[%emt 0:00:32]} Nxf6 {[%emt 0:01:32]} 10. e3 {[%emt 0:00:09] The position is equal.} O-O {[%emt 0:01:13]} 11. c4 {[%emt 0:04:28] [#]} c5 $1 {[%emt 0:13:27]} 12. dxc5 {[%emt 0:05:14]} (12. Be2 Qa5+) 12... Qa5+ {[%emt 0:00:47]} 13. Qd2 {[%emt 0:00:14]} Qxc5 {[%emt 0:00:17]} 14. Qd4 {[%emt 0:02:10]} Qb4+ {[%emt 0:02:41]} 15. Qd2 {[%emt 0:00:08]} Qxd2+ {[%emt 0:02:42]} 16. Nxd2 {[%emt 0:00:06]} Be6 {[%emt 0:00:03]} 17. cxd5 {[%emt 0:01:56]} Bxd5 {[%emt 0:01:21]} 18. f3 {[%emt 0:00:15]} Rac8 {[%emt 0:00:22]} 19. e4 {[%emt 0:13:43]} Be6 {[%emt 0:02:13]} 20. Nb3 {[%emt 0:05:38]} Rc2 {[%emt 0:06:09]} 21. Be2 {[%emt 0:00:08]} Rd8 {[%emt 0:08:21]} 22. Kf2 {[%emt 0:05:37]} Bc4 {[%emt 0:04:41] Black has more active pieces.} 23. Rhe1 {[%emt 0:00:09]} b5 {[%emt 0:03:39]} 24. Kf1 {[%emt 0:06:05]} Rb2 {[%emt 0:02:29]} (24... Nh5 $15 25. g3 g5) 25. Na5 {[%emt 0:03:15]} Be6 {[%emt 0:06:20][%cal Od8d2]} (25... Bxe2+ {simplifies} 26. Rxe2 Rxe2 27. Kxe2 Rd4) 26. Nc6 {[%emt 0:03:24]} (26. Reb1 $11 Rdd2 (26... Rxa2 27. Rxa2 Bxa2 28. Rxb5 $14) 27. Rxb2 Rxb2 28. Nc6) 26... Rdd2 $15 {[%emt 0:00:30] Strongly threatening ...Bc4.} 27. Rad1 {[%emt 0:05:10]} Rxd1 {[%emt 0:05:23]} ({Of course not} 27... Rxa2 28. Rxd2 Rxd2 29. Bxb5 $11) (27... Nxe4 $2 28. fxe4 Rxe2 29. Rxe2 $18) (27... Rxe2 $1 $15 28. Rxe2 (28. Rd8+ $2 Kh7 $19) 28... Bc4) 28. Rxd1 $11 {[%emt 0:00:06]} a6 {[%emt 0:00:01][%cal Og8h7]} 29. a3 {[%emt 0:01:31]} Nd7 {[%emt 0:02:24]} 30. Nd8 {[%emt 0:06:24]} (30. Nb4 $11 {might be stronger.}) 30... Nc5 $15 {[%emt 0:00:29]} 31. Rc1 {[%emt 0:00:40] [#] Inhibits Bc4.} ({White should play} 31. Rd6 $15) 31... Nb3 $1 $17 {[%emt 0:00:18]} 32. Rc3 {[%emt 0:01:49]} Nd2+ {[%emt 0:03:50]} 33. Ke1 {[%emt 0:00:19]} Bc4 {[%emt 0:00:01] Threatens to win with ...Nb1.} 34. Bxc4 {[%emt 0:00:43]} Nxc4 {[%emt 0:00:01][%mdl 4096] Endgame. KRN-KRN} 35. Kf1 {[%emt 0:01:58]} Rb1+ {[%emt 0:00:20]} 36. Kf2 {[%emt 0:00:24][%cal Oa3a4]} Rb2+ {[%emt 0:00:01]} (36... Ra1 $17 37. Nc6 Ra2+ (37... Rxa3 38. Rxa3 Nxa3 39. Ke3 $17) (37... Nxa3 $2 38. Ne5 $17) 38. Kg3 Rxa3 39. Rxa3 Nxa3) 37. Kg3 $2 {[%emt 0:00:30]} (37. Kf1 $1 $11 {and White stays safe.}) 37... Ra2 $19 {[%emt 0:00:04]} 38. e5 {[%emt 0:02:01]} (38. Nc6 $17 {is a better defense.}) 38... Rxa3 {[%emt 0:03:49]} 39. Rxa3 {[%emt 0:00:05]} Nxa3 {[%emt 0:00:01] KN-KN} 40. Nc6 {[%emt 0:00:44]} (40. Nb7 {might work better.}) 40... Nc4 {[%emt 0:00:18] Hoping for ...a5. Black is clearly winning.} 41. Kf2 {[%emt 0:00:10]} a5 {[%emt 0:00:18]} 42. Ke2 {[%emt 0:00:59]} b4 {[%emt 0:00:07]} 43. Kd3 {[%emt 0:00:21] [#]} b3 $1 {[%emt 0:00:09][%cal Oa5a4] White must now prevent ...a4!} 44. f4 {[%emt 0:00:15]} (44. Ne7+ Kf8) 44... b2 {[%emt 0:00:23]} 45. Kc2 {[%emt 0:00:03]} a4 {[%emt 0:00:03]} 46. Nb4 {[%emt 0:02:19]} a3 {[%emt 0:00:05][%cal Oc4d2] ( -> ...Nd2!)} 47. Na2 {[%emt 0:00:11] [#]} Nd2 $1 {[%emt 0:01:20][%mdl 512] Weighted Error Value: White=0.47/Black=0.17 (very precise) .  Loses game:     	White=1     	---        Mistake:       	White=5     	Black=3      Inaccurate:     	White=2     	---        OK:         	White=9     	Black=14     Best:        	White=3     	Black=6      Strong:       	---       	Black=1} 0-1

[Event "Chinese Championship-B Men 2024"]
[Site "Liaocheng"]
[Date "2024.04.25"]
[Round "9.4"]
[White "Chen, Zimu(Js)"]
[Black "Chen, Hongsen"]
[Result "1-0"]
[ECO "A07"]
[WhiteElo "2075"]
[BlackElo "2171"]
[Annotator "TA"]
[PlyCount "115"]
[EventDate "2024.04.24"]
[EventType "swiss"]
[EventCountry "CHN"]
[SourceTitle "playchess.com"]
[Source "ChessBase"]
[SourceQuality "1"]
[TimeControl "5400+30"]

{[%evp 19,115,-34,-19,-27,-21,-31,-11,-72,-52,-99,-82,-75,-54,-48,-54,-72,-57,-69,-81,-64,-18,-12,0,11,22,18,14,-6,-17,-11,0,0,0,-4,0,0,0,0,0,0,18,13,12,15,33,15,34,30,25,24,24,18,14,0,0,0,66,61,95,87,84,88,100,104,104,96,189,179,234,185,291,319,402,378,430,502,514,500,1706,1622,1598,1528,1828,1691,1655,1981,6399,6197,29967,29972,29984,29985,29986,29986,29987,29988,29990,29989]} 1. Nf3 {[%emt 0:00:04]} d5 {[%emt 0:00:16]} 2. g3 {[%emt 0:00:07]} Nf6 {[%emt 0:00:37]} 3. Bg2 {[%emt 0:00:22]} c6 {[%emt 0:00:25]} 4. O-O {[%emt 0:00:08]} Bg4 {[%emt 0:00:04]} 5. h3 {[%emt 0:00:07]} Bh5 {[%emt 0:00:05]} 6. c4 {[%emt 0:00:15] A07: Réti Opening: New York and Capablanca Systems.} e6 {[%emt 0:00:46]} 7. Qb3 {[%emt 0:00:36]} Qb6 {[%emt 0:00:52]} 8. Qxb6 {[%emt 0:00:48]} axb6 {[%emt 0:00:06]} 9. cxd5 {[%emt 0:00:10]} exd5 {[%emt 0:01:03]} 10. b3 $146 {[%emt 0:02:41]} ({Predecessor:} 10. d4 Bd6 11. Nc3 O-O 12. Ne5 Nbd7 13. f4 h6 14. g4 Bg6 15. f5 Bh7 16. Bf4 {½-½ Pogorevici,L (2097)-Dobrin,C (2031) Ploiesti Master op 2003 (5)}) 10... Bd6 {[%emt 0:07:21]} 11. Bb2 {[%emt 0:00:39]} O-O {[%emt 0:00:16]} 12. a4 {[%emt 0:01:13]} Re8 {[%emt 0:02:49]} 13. g4 {[%emt 0:12:21]} (13. Bxf6 $11 gxf6 14. e3) 13... Bg6 $17 {[%emt 0:00:54]} 14. Nd4 {[%emt 0:00:13]} (14. e3 $15) 14... Bc5 {[%emt 0:08:13]} 15. e3 {[%emt 0:17:16]} Na6 {[%emt 0:04:20]} 16. Nf5 {[%emt 0:06:15]} Bxf5 {[%emt 0:05:58]} 17. gxf5 {[%emt 0:00:06]} Ne4 {[%emt 0:00:20]} 18. d3 {[%emt 0:04:03]} Nd6 {[%emt 0:00:23]} (18... Nxf2 $5 19. Rxf2 Bxe3 $19) 19. f6 {[%emt 0:00:27]} Bb4 {[%emt 0:04:33]} (19... g6 $15) 20. Na3 $1 $11 {[%emt 0:03:55]} g6 {[%emt 0:28:18]} (20... Nc5 21. Nc2 Nxd3 22. Nxb4 Nxb4 (22... Nxb2 23. Ra2 $16) 23. Ba3 $14 (23. fxg7 Nd3 $17)) 21. Nc2 {[%emt 0:04:20]} Nf5 {[%emt 0:00:07]} 22. e4 {[%emt 0:09:57]} Nh4 {[%emt 0:00:57]} 23. exd5 {[%emt 0:01:02]} Nxg2 24. Kxg2 {[%emt 0:00:04]} Re2 {[%emt 0:05:41]} 25. Rac1 {[%emt 0:03:39]} Bd2 {[%emt 0:01:56]} 26. Rb1 {[%emt 0:00:09]} Bg5 {[%emt 0:02:09]} 27. Ne1 {[%emt 0:01:33]} (27. Nd4 Rxb2 28. Rxb2 Bxf6 $19) 27... cxd5 {[%emt 0:03:19]} 28. Nf3 {[%emt 0:00:20]} Bf4 {[%emt 0:00:16]} 29. Rfe1 {[%emt 0:02:19]} Rxe1 {[%emt 0:01:45]} 30. Rxe1 {[%emt 0:00:04]} Nc5 {[%emt 0:00:14]} 31. Bd4 {[%emt 0:03:59]} Bd6 {[%emt 0:00:57]} 32. Be5 {[%emt 0:01:37]} Nxd3 {[%emt 0:06:36]} 33. Bxd6 {[%emt 0:00:07]} Nxe1+ {[%emt 0:00:04]} 34. Nxe1 {[%emt 0:00:05]} Rc8 {[%emt 0:00:20]} 35. Nf3 {[%emt 0:03:28]} Rc3 {[%emt 0:00:19]} 36. b4 {[%emt 0:00:28]} Ra3 {[%emt 0:01:37]} 37. Ne5 {[%emt 0:01:10]} h6 {[%emt 0:01:00]} (37... g5 $11) 38. Nd7 $1 $14 {[%emt 0:00:45]} d4 {[%emt 0:02:41]} 39. Nxb6 {[%emt 0:00:16]} d3 {[%emt 0:00:05] [#]} 40. Bf4 $1 {[%emt 0:00:20]} Rb3 {[%emt 0:02:45] [#]} 41. b5 $1 {[%emt 0:03:15]} (41. Bxh6 $6 Rxb4 42. a5 Rb5 $11) 41... g5 {[%emt 0:01:03]} 42. Be3 {[%emt 0:00:08]} Kh7 {[%emt 0:00:18]} (42... Rb2 $16 {was worth a try.} 43. Kf3 Ra2) 43. Kf3 $18 {[%emt 0:01:52]} Kg6 {[%emt 0:01:40]} (43... Ra3 {was called for.} 44. Ke4 Kg6) 44. Ke4 {[%emt 0:00:26]} h5 {[%emt 0:01:13]} (44... Ra3 $142 45. Nc4 Rxa4 46. Kxd3 Kxf6) 45. Nc4 $18 {[%emt 0:07:54]} Kxf6 {[%emt 0:01:01]} 46. Na5 {[%emt 0:02:56]} d2 {[%emt 0:02:53]} 47. Bxd2 $1 {[%emt 0:00:03]} (47. Nxb3 $2 {too greedy.} d1=Q (47... d1=B $2 48. Nc5 $18) 48. Bd4+ Kg6 $19) 47... Rxh3 {[%emt 0:00:05]} 48. Nxb7 {[%emt 0:02:51]} Rb3 {[%emt 0:01:53]} (48... h4 $142 49. Nc5 Ra3) 49. Nc5 $18 {[%emt 0:01:54]} Rb1 {[%emt 0:00:01]} 50. b6 {[%emt 0:01:00]} h4 {[%emt 0:00:43]} 51. Kf3 {[%emt 0:00:05]} ({Stronger than} 51. b7 h3 $11) 51... Ke5 {[%emt 0:00:56]} 52. a5 {[%emt 0:00:56]} ({Weaker is} 52. Bxg5 Kd5 $16) 52... Kd5 {[%emt 0:01:30]} 53. a6 {[%emt 0:01:25]} g4+ {[%emt 0:00:31]} 54. Kg2 {[%emt 0:00:20]} g3 {[%emt 0:02:39]} 55. a7 {[%emt 0:00:25]} Ra1 {[%emt 0:00:04]} 56. b7 {[%emt 0:00:33]} h3+ {[%emt 0:00:57]} 57. Kxg3 {[%emt 0:00:05]} Ra3+ {[%emt 0:00:32]} 58. Kh2 {[%emt 0:00:05]} 1-0